bitfinex/quotes_ETHUSD_20260207
["timestamp","ask_amount","ask_price","bid_price","bid_amount"]
[1770480037745,0.96444198,2056.6,2055.3,1.21636064]
[1770480037964,0.87428002,2056.5,2055.7,1.21609502]
[1770480038145,0.96444198,2056.7,2055.7,1.21609502]
[1770480038336,0.96444198,2056.7,2055.8,1.21606479]
[1770480038537,2.18004054,2056.6,2055.5,1.21624908]
[1770480038728,0.96444198,2056.5,2055.5,1.21624908]
[1770480038936,1.66868546,2056.5,2055.6,0.70202415]
[1770480039452,2.17994396,2056.8,2055.7,0.93879926]
[1770480040040,1.21550198,2056.8,2055.9,0.93879926]
[1770480040525,0.96444198,2057.1,2056.1,0.001]
[1770480040726,2.76235094,2057.0,2056.1,0.001]
[1770480040926,0.002,2056.8,2056.1,0.001]
[1770480043657,0.96444198,2056.7,2056.1,0.001]
[1770480043836,0.96444198,2056.7,2055.9,0.001]
[1770480044431,0.96444198,2056.5,2055.1,1.21644795]
[1770480044632,0.96444198,2056.5,2055.1,1.21648164]
[1770480044633,0.96444198,2056.3,2055.1,1.21648164]
[1770480044929,0.96444198,2056.3,2055.0,0.001]
[1770480044930,0.96444198,2056.2,2055.0,0.001]
[1770480045127,1.06684198,2056.2,2055.0,1.21753707]
[1770480045360,1.848962,2056.1,2055.1,0.60838963]
[1770480045543,0.96444198,2056.0,2055.0,0.001]
[1770480046530,0.96444198,2055.9,2055.0,0.001]
[1770480046832,0.96444198,2055.7,2055.0,0.001]
[1770480047031,0.96444198,2055.7,2054.8,0.001]
[1770480047032,0.96444198,2055.6,2054.8,0.001]
[1770480047232,0.96444198,2055.4,2054.6,0.001]
[1770480047744,7.77835825,2055.4,2054.6,0.001]
[1770480048071,0.87428002,2055.5,2054.2,0.001]
[1770480048072,0.96444198,2055.0,2054.2,0.001]
[1770480048753,1.21660421,2054.9,2054.2,0.001]
[1770480048973,0.7047463,2054.8,2054.2,0.001]
[1770480049269,0.96444198,2054.7,2053.7,0.001]
[1770480049657,0.96444198,2054.5,2053.7,0.001]
[1770480050736,0.96444198,2054.4,2053.7,0.001]
[1770480050937,1.21701879,2054.2,2053.7,0.001]
[1770480052437,1.21699873,2054.3,2053.7,0.001]
[1770480053268,4.86715797,2054.6,2053.7,0.001]
[1770480053575,0.96444198,2054.5,2053.7,0.001]
[1770480053876,0.58316,2054.4,2053.7,0.001]
[1770480055535,1.21687029,2054.5,2053.7,0.001]
[1770480056047,4.8666642,2054.8,2053.8,0.93879926]
[1770480056048,1.21671414,2054.8,2053.8,0.93879926]
[1770480057741,1.21671414,2054.8,2053.9,1.21819655]
[1770480058137,1.21671414,2054.8,2053.9,2.15699581]
[1770480058363,2.40816049,2054.8,2054.0,0.70260149]
[1770480058666,2.40816049,2054.8,2053.9,1.21819655]
[1770480059873,2.40816049,2054.8,2053.9,0.001]
[1770480060174,2.40816049,2054.8,2053.9,0.93979926]
[1770480062372,2.40816049,2054.8,2053.9,2.15699562]
[1770480062577,2.40816049,2054.8,2054.0,0.93879926]
[1770480062948,2.40816049,2054.8,2053.9,1.21819636]
[1770480063150,0.72748142,2054.7,2054.0,0.60870787]
[1770480064377,1.21678185,2054.6,2054.0,0.60870787]
[1770480064546,1.21678185,2054.6,2053.7,0.93979926]
[1770480064547,0.96444198,2054.4,2053.7,0.001]
[1770480064753,1.21678185,2054.6,2053.7,0.001]
[1770480064951,0.77758327,2054.5,2053.8,1.21722765]
[1770480065164,0.77758327,2054.5,2053.7,0.001]
[1770480065970,0.9328028,2054.4,2054.1,0.001]
[1770480066167,0.9328028,2054.4,2053.7,0.001]
[1770480066367,1.21707803,2054.1,2053.7,0.001]
[1770480066572,1.21707803,2054.1,2053.9,0.001]
[1770480066971,1.21707803,2054.1,2053.7,0.001]
[1770480067150,2.14988083,2054.1,2053.7,0.001]
[1770480067852,0.9328028,2054.0,2053.7,0.001]
[1770480068059,0.9328028,2054.0,2053.4,0.001]
[1770480068460,1.21719655,2053.9,2053.4,0.001]
[1770480068776,0.70187856,2053.8,2053.4,0.001]
[1770480069851,1.63468136,2053.8,2053.4,0.001]
[1770480070070,1.63468136,2053.8,2053.2,0.001]
[1770480070269,0.9328028,2053.7,2053.1,0.001]
[1770480070483,0.97154911,2053.6,2052.8,0.001]
[1770480070667,3.00425299,2053.5,2052.8,0.001]
[1770480071959,0.97154911,2053.4,2052.8,0.001]
[1770480072159,0.97154911,2053.4,2052.4,0.001]
[1770480072680,1.21755223,2053.3,2052.4,0.97851778]
[1770480072979,1.90785537,2053.3,2052.4,0.97851778]
[1770480074087,1.90785537,2053.3,2052.4,0.001]
[1770480076788,0.97154911,2053.2,2052.4,0.001]
[1770480077758,1.21767083,2053.1,2052.4,0.001]
[1770480079488,1.21767083,2053.1,2052.6,0.001]
[1770480079892,4.87068335,2053.2,2052.6,0.001]
[1770480080401,1.21743364,2053.5,2052.6,0.001]
[1770480080566,0.58413226,2053.4,2052.6,0.001]
[1770480080760,0.97154911,2053.3,2052.6,0.001]
[1770480082384,1.21761153,2053.2,2052.6,0.001]
[1770480082891,2.18916064,2053.2,2052.6,0.001]
[1770480083072,1.67750979,2053.1,2052.6,0.001]
[1770480083387,1.67750979,2053.1,2052.4,0.001]
[1770480083793,0.97154911,2053.0,2052.1,0.001]
[1770480083966,1.26106124,2053.0,2052.1,1.21924974]
[1770480084171,0.28951213,2053.0,2052.1,2.19676752]
[1770480084566,1.21778946,2052.9,2052.1,2.19676752]
[1770480085624,1.21778946,2052.9,2052.2,0.97751778]
[1770480086997,1.21778946,2052.9,2052.2,2.19571911]
[1770480087196,1.92623147,2052.9,2052.2,0.70698771]
[1770480087494,1.92623147,2052.9,2052.1,0.001]
[1770480088695,1.92623147,2052.9,2052.1,1.21925933]
[1770480088905,1.92623147,2052.9,2052.1,0.001]
[1770480089380,0.80584506,2052.8,2052.1,0.001]
[1770480090595,0.80584506,2052.8,2052.1,0.97851778]
[1770480090899,1.92623147,2052.9,2052.1,0.97851778]
[1770480091093,1.21775745,2053.0,2052.2,0.97751778]
[1770480091397,1.21771079,2053.1,2052.2,0.97751778]
[1770480092780,1.21771079,2053.1,2052.3,0.001]
[1770480093087,1.21971079,2053.1,2052.4,0.97751778]
[1770480093294,0.002,2053.1,2052.4,2.19556223]
[1770480093602,0.002,2053.1,2052.5,0.70690848]
[1770480093797,0.002,2053.1,2052.6,0.97751778]
[1770480095496,0.002,2053.1,2052.8,0.97751778]
[1770480096981,0.002,2053.1,2052.7,1.21790812]
[1770480097178,0.002,2053.1,2052.5,2.84480757]
[1770480097383,0.002,2053.1,2052.6,1.2179641]
[1770480097578,0.002,2053.1,2052.7,0.91990448]
[1770480098609,0.002,2053.3,2052.8,0.91990448]
[1770480098905,5.83933356,2053.9,2052.6,1.26665907]
[1770480098906,1.21920874,2053.9,2053.1,0.91990448]
[1770480099082,0.002,2053.9,2053.1,0.91990448]
[1770480099602,0.002,2053.9,2053.3,0.91990448]
[1770480101603,0.002,2053.9,2053.4,2.13739741]
[1770480101804,0.002,2053.9,2053.5,1.6206414]
[1770480102496,0.002,2053.9,2053.5,0.70073692]
[1770480103401,0.002,2053.9,2053.5,1.6206414]
[1770480103603,0.002,2053.9,2053.5,2.83804733]
[1770480103983,0.002,2053.9,2053.5,1.6206414]
[1770480104183,0.002,2053.9,2053.6,0.28381067]
[1770480104608,0.002,2054.1,2053.7,0.91990448]
[1770480104918,0.002,2054.6,2053.9,0.91990448]
[1770480105543,0.002,2054.6,2054.0,0.91990448]
[1770480105691,0.002,2054.6,2054.2,0.91990448]
[1770480106021,0.002,2054.8,2054.4,0.91990448]
[1770480106524,0.002,2055.0,2054.4,0.91990448]
[1770480106824,0.002,2055.0,2054.3,2.13686402]
[1770480107012,0.002,2055.0,2054.4,1.62038057]
[1770480107388,0.002,2055.0,2054.5,7.18115331]
[1770480107584,0.002,2055.7,2054.6,0.96859945]
[1770480107881,0.002,2055.7,2055.1,0.91990448]
[1770480108701,0.002,2055.7,2055.1,0.70513245]
[1770480109742,0.002,2055.7,2055.1,1.62503693]
[1770480110025,0.002,2055.7,2055.3,2.13627192]
[1770480110229,1.21581271,2056.3,2055.4,0.91990448]
[1770480110437,1.21561101,2056.6,2055.5,7.18115331]
[1770480110745,1.2175301,2056.8,2055.7,0.91990448]
[1770480111395,0.002,2056.8,2055.7,0.91990448]
[1770480111605,0.002,2056.8,2055.6,0.85880075]
[1770480111606,0.002,2056.8,2056.2,0.91990448]
[1770480111804,0.002,2056.8,2055.7,1.21612642]
[1770480112008,0.002,2056.8,2055.8,1.21606446]
[1770480112240,0.002,2056.8,2055.9,1.21600928]
[1770480112438,0.002,2056.8,2056.0,0.91990448]
[1770480112612,0.002,2057.0,2056.2,0.91990448]
[1770480113436,0.002,2057.0,2056.0,1.32612124]
[1770480113636,0.002,2057.0,2056.2,0.91990448]
[1770480113804,0.002,2057.0,2056.3,1.2157759]
[1770480114007,0.002,2057.0,2056.3,2.13568038]
[1770480114214,0.002,2057.0,2056.5,0.91990448]
[1770480114410,0.002,2057.0,2056.4,0.6998784]
[1770480114636,0.002,2057.0,2056.4,1.61978288]
[1770480114838,0.002,2057.0,2056.5,0.91990448]
[1770480115037,0.96839924,2057.8,2056.5,0.91990448]
[1770480115241,0.33544519,2057.9,2056.8,0.91990448]
[1770480115558,0.33544519,2057.9,2056.8,0.96859945]
[1770480115907,0.33544519,2057.9,2057.1,0.96859945]
[1770480116110,0.96839924,2058.7,2057.3,0.91990448]
[1770480116311,0.96839924,2058.6,2057.4,0.91990448]
[1770480116548,0.96839924,2058.6,2056.8,6.13328683]
[1770480116549,0.96839924,2058.5,2056.8,6.13328683]
[1770480116724,0.96839924,2058.5,2056.8,1.21544386]
[1770480116725,0.96839924,2058.2,2056.8,1.21544386]
[1770480117036,0.3359703,2057.6,2056.4,0.6998784]
[1770480117225,0.96839924,2057.5,2056.6,1.21556108]
[1770480117428,0.96839924,2057.5,2056.2,8.10105779]
[1770480117429,0.96839924,2057.5,2056.5,1.21561101]
[1770480117628,0.96839924,2057.5,2056.6,1.21559019]
[1770480118018,0.96839924,2057.5,2056.4,0.91990448]
[1770480118336,0.96839924,2057.4,2056.3,1.2157759]
[1770480119042,0.96839924,2057.4,2056.3,2.13568038]
[1770480119340,0.97039924,2057.7,2056.4,0.91990448]
[1770480119510,0.002,2057.7,2056.7,0.91990448]
[1770480119715,0.002,2057.7,2057.0,0.91990448]
[1770480119914,0.002,2057.7,2057.1,2.13520757]
[1770480120111,0.002,2057.7,2057.2,0.91990448]
[1770480120329,0.002,2057.7,2057.1,1.21530309]
[1770480120568,0.002,2057.7,2057.2,0.91990448]
[1770480120735,0.002,2057.9,2057.2,0.91990448]
[1770480121455,0.002,2057.9,2057.1,1.91494509]
[1770480121736,0.002,2057.9,2057.2,0.91990448]
[1770480121949,0.002,2057.9,2057.3,0.28835445]
[1770480122163,0.002,2057.9,2057.3,1.2151477]
[1770480122451,0.002,2057.9,2057.2,1.21521042]
[1770480122754,0.002,2057.9,2057.3,1.21517946]
[1770480122960,0.002,2057.9,2057.3,1.21518474]
[1770480123757,0.97039924,2057.9,2056.4,5.47545552]
[1770480123922,0.97039924,2057.9,2056.4,1.82846024]
[1770480123923,0.96839924,2057.6,2056.4,1.82846024]
[1770480124120,0.96839924,2057.4,2056.4,1.82846024]
[1770480124823,0.96839924,2057.4,2056.4,1.21571653]
[1770480125768,0.96839924,2057.4,2056.0,9.18369959]
[1770480125769,0.96839924,2057.3,2056.0,1.21592296]
[1770480126053,7.75773036,2057.4,2055.9,0.001]
[1770480126054,1.03900315,2056.8,2055.9,0.001]
[1770480126756,0.93660315,2056.6,2055.6,0.001]
[1770480126960,0.93660315,2056.4,2055.6,0.001]
[1770480127963,0.93660315,2056.1,2054.8,1.2176249]
[1770480128259,0.93660315,2055.9,2054.8,0.001]
[1770480128623,0.86943335,2056.0,2054.8,0.001]
[1770480128826,0.93660315,2056.2,2054.8,8.74173834]
[1770480129660,0.93660315,2056.2,2054.8,8.69304337]
[1770480130154,0.93660315,2056.2,2054.9,1.21660421]
[1770480130452,0.93660315,2056.2,2054.9,2.24006382]
[1770480130645,0.93660315,2056.2,2055.8,0.001]
[1770480130856,0.93860315,2056.2,2055.8,0.001]
[1770480131226,0.002,2056.2,2055.8,0.001]
[1770480132155,0.96464751,2056.2,2055.5,0.001]
[1770480132352,0.96464751,2056.2,2054.8,0.001]
[1770480132353,0.96264751,2056.1,2054.8,0.001]
[1770480132539,1.8348853,2056.0,2054.8,1.21765191]
[1770480133065,0.96264751,2055.9,2054.8,1.21765191]
[1770480134261,0.96264751,2055.9,2054.8,0.001]
[1770480134481,0.1024,2055.7,2054.8,0.001]
[1770480134790,1.06504751,2055.7,2054.8,0.001]
[1770480135348,0.96264751,2055.5,2054.8,0.001]
[1770480135545,0.96264751,2055.3,2054.0,1.21708675]
[1770480136054,0.96264751,2055.3,2053.8,1.21721555]
[1770480136055,0.96264751,2055.0,2053.8,1.21721555]
[1770480136307,0.96264751,2055.0,2053.9,0.60863171]
[1770480136584,0.96264751,2055.0,2054.0,1.21713729]
[1770480136947,0.96264751,2055.0,2053.9,1.2171822]
[1770480136948,2.17923544,2055.0,2053.9,1.2171822]
[1770480137144,0.96264751,2055.0,2053.9,1.2171822]
[1770480137366,0.96264751,2055.0,2054.0,0.6086039]
[1770480137875,1.8346853,2055.4,2054.1,1.02345961]
[1770480138180,0.1024,2055.7,2054.1,1.02345961]
[1770480138181,2.28121356,2055.7,2054.3,0.97476464]
[1770480138363,2.28121356,2055.7,2054.4,1.21690031]
[1770480138573,2.28121356,2055.7,2054.5,8.732495]
[1770480138574,0.96264751,2055.7,2054.5,8.732495]
[1770480138876,0.1024,2055.8,2054.6,0.99980903]
[1770480139075,0.1024,2055.8,2054.6,1.97457367]
[1770480140547,0.96264751,2056.0,2054.7,2.24018224]
[1770480140758,1.3202839,2056.2,2054.9,0.97476464]
[1770480141079,0.96264751,2056.1,2054.9,0.97476464]
[1770480141454,0.002,2056.2,2054.9,0.97476464]
[1770480141649,0.002,2056.2,2054.8,8.61711351]
[1770480141650,0.002,2056.2,2055.1,0.97476464]
[1770480141850,0.002,2056.2,2055.1,1.02345961]
[1770480142260,0.002,2056.2,2055.2,0.97476464]
[1770480142683,0.002,2056.2,2055.3,1.21636744]
[1770480142980,0.002,2056.2,2055.4,0.70566018]
[1770480144352,0.002,2056.2,2055.5,0.97476464]
[1770480144972,0.002,2056.2,2055.6,1.21618992]
[1770480145856,0.002,2056.4,2056.0,0.97476464]
[1770480146579,1.74042055,2057.3,2056.0,0.97476464]
[1770480146768,2.17983468,2057.3,2056.0,0.97476464]
[1770480146970,0.96264751,2056.7,2055.4,0.70566018]
[1770480147293,0.96264751,2056.7,2055.5,1.21621251]
[1770480147653,0.96264751,2056.7,2055.7,1.21612329]
[1770480147853,0.96264751,2056.4,2055.3,0.001]
[1770480148058,0.96264751,2056.2,2055.3,1.21736708]
[1770480148348,0.96264751,2056.2,2055.3,0.001]
[1770480148952,2.17852304,2056.2,2055.3,0.001]
[1770480150193,0.87203779,2056.3,2055.3,0.001]
[1770480150369,2.08781889,2056.3,2055.3,0.001]
[1770480150582,0.69507895,2056.2,2055.3,0.001]
[1770480150959,1.2157811,2056.3,2055.3,0.001]
[1770480151783,0.96264751,2056.5,2055.3,0.001]
[1770480151969,4.96528222,2056.4,2055.3,0.001]
[1770480152786,1.31811678,2056.4,2055.3,0.001]
[1770480153972,2.28076429,2056.4,2055.3,0.001]
[1770480154170,0.71434977,2056.3,2055.3,0.70678978]
[1770480155862,1.68151098,2056.3,2055.3,0.70678978]
[1770480156170,1.21783503,2056.2,2055.4,1.21630826]
[1770480156497,0.002,2056.2,2055.4,1.21630826]
[1770480158759,0.96916121,2056.2,2055.3,0.001]
[1770480160387,1.21589416,2056.1,2055.3,0.001]
[1770480160599,0.7048632,2056.0,2055.3,0.001]
[1770480161702,0.96716121,2055.9,2055.3,0.001]
[1770480162700,0.96716121,2055.5,2055.0,0.001]
[1770480162889,0.96716121,2055.5,2054.6,0.001]
[1770480163772,1.2160716,2055.8,2054.7,0.94432601]
[1770480163974,2.18323281,2055.8,2054.7,0.94432601]
[1770480164690,0.96716121,2055.7,2054.6,0.001]
[1770480164891,0.96716121,2055.5,2054.6,0.001]
[1770480166772,0.96716121,2055.3,2054.6,0.001]
[1770480168472,0.96716121,2055.3,2054.9,0.001]
[1770480168792,0.96716121,2054.6,2054.2,0.001]
[1770480168991,0.96716121,2054.6,2053.8,0.001]
[1770480170108,0.96716121,2054.4,2053.8,0.001]
[1770480170274,0.96716121,2054.2,2053.1,2.16199623]
[1770480170676,0.79913007,2054.4,2053.3,2.16187824]
[1770480170875,1.21684108,2054.5,2053.3,2.16187824]
[1770480171179,0.96716121,2054.4,2053.0,5.81516734]
[1770480171485,0.96716121,2054.4,2053.2,1.21760937]
[1770480172904,1.21695954,2054.3,2053.2,1.21760937]
[1770480173080,0.96716121,2054.2,2053.2,1.21760937]
[1770480173987,0.96716121,2054.2,2053.1,0.58151673]
[1770480174316,0.96716121,2054.2,2053.1,1.21765662]
[1770480174482,0.96716121,2054.2,2053.1,2.16198263]
[1770480175087,0.96716121,2054.2,2053.1,2.16198114]
[1770480175088,1.21707803,2054.1,2053.1,2.16198114]
[1770480175511,4.96917571,2054.9,2053.5,0.94432601]
[1770480175820,0.1024,2054.7,2053.7,0.94432601]
[1770480177121,0.1024,2054.7,2053.7,1.21731508]
[1770480177122,1.21678185,2054.6,2053.7,1.21731508]
[1770480178320,0.96716121,2054.5,2053.4,1.21744809]
[1770480178487,1.21678185,2054.6,2053.5,2.16173836]
[1770480178688,0.61863093,2054.5,2053.6,1.92053509]
[1770480179223,1.21690031,2054.4,2053.6,0.70316946]
[1770480179529,1.21690031,2054.4,2053.2,0.94432601]
[1770480179686,2.18406152,2054.4,2053.3,1.21752515]
[1770480180012,2.18406152,2054.4,2053.2,5.81476124]
[1770480180219,1.48510227,2054.3,2053.4,0.001]
[1770480180388,0.96716121,2054.1,2053.4,0.001]
[1770480182293,1.48510227,2054.3,2053.4,0.001]
[1770480182499,1.21701879,2054.2,2053.4,0.94532601]
[1770480183391,1.2169805,2054.3,2053.4,0.94532601]
[1770480183892,1.21884743,2054.5,2053.4,0.94532601]
[1770480184285,1.21884743,2054.5,2053.5,2.16175965]
[1770480184485,2.18600864,2054.5,2053.4,1.21849063]
[1770480184712,1.68272199,2054.4,2053.4,0.001]
[1770480184903,0.96716121,2054.3,2053.4,1.21847746]
[1770480185107,1.21884743,2054.5,2053.5,0.94432601]
[1770480185611,1.82765209,2054.5,2053.5,0.94432601]
[1770480185823,1.82765209,2054.5,2053.4,1.21847746]
[1770480185824,0.002,2054.7,2053.9,0.94432601]
[1770480186004,0.002,2054.7,2054.2,0.92527291]
[1770480186210,4.86515459,2055.5,2054.0,0.92527291]
[1770480186406,1.21824908,2055.6,2054.2,0.92527291]
[1770480186725,0.715257,2055.5,2054.2,0.97396788]
[1770480187022,0.002,2055.6,2054.5,0.92527291]
[1770480187912,0.002,2055.6,2054.7,0.92527291]
[1770480188521,0.002,2055.6,2054.8,1.21666342]
[1770480188718,0.002,2055.6,2054.7,1.21671963]
[1770480189025,0.002,2055.6,2054.8,0.92527291]
[1770480190413,0.002,2055.6,2054.7,2.19601608]
[1770480190637,0.002,2055.6,2054.8,0.70629066]
[1770480191023,0.002,2055.6,2054.8,1.68558711]
[1770480191626,0.002,2055.6,2054.9,0.97929645]
[1770480192624,0.002,2055.6,2055.0,1.21654501]
[1770480193310,1.21783503,2056.2,2055.1,0.97929645]
[1770480194531,2.12068964,2056.2,2055.1,0.97929645]
[1770480194915,2.12068964,2056.2,2055.2,1.21642662]
[1770480195307,1.00525461,2055.8,2054.8,5.57291223]
[1770480195623,1.00525461,2055.8,2054.9,1.21657598]
[1770480195825,1.82385297,2055.8,2055.0,0.67894882]
[1770480196524,8.08358357,2055.7,2054.7,0.001]
[1770480196728,8.08358357,2055.7,2054.7,1.21772258]
[1770480196729,0.90285461,2055.7,2054.7,1.21772258]
[1770480196928,0.90285461,2055.7,2054.7,0.001]
[1770480197142,1.21618992,2055.6,2054.7,0.60959687]
[1770480197435,1.21618992,2055.6,2054.7,1.82631618]
[1770480197624,1.21618992,2055.6,2054.7,0.60959687]
[1770480197836,2.11904453,2055.6,2054.7,0.60959687]
[1770480198002,1.21618992,2055.6,2054.7,0.001]
[1770480198534,0.90285461,2055.5,2054.7,0.001]
[1770480199628,0.90285461,2055.3,2054.7,0.001]
[1770480200809,0.90285461,2055.1,2054.5,0.001]
[1770480201333,1.33646703,2055.3,2054.5,0.001]
[1770480201539,0.1024,2055.3,2054.5,0.001]
[1770480202529,2.11916287,2055.4,2054.5,0.001]
[1770480203417,0.90285461,2055.3,2054.5,0.001]
[1770480203819,0.90285461,2055.1,2054.5,0.001]
[1770480204539,8.39715558,2055.2,2053.8,1.21724414]
[1770480204540,0.90285461,2054.9,2053.8,1.21724414]
[1770480205119,0.90285461,2054.9,2053.7,2.19658027]
[1770480205421,0.90285461,2054.9,2053.8,1.21724701]
[1770480205741,1.21666342,2054.8,2053.8,1.21724701]
[1770480205942,1.21666342,2054.8,2054.7,0.001]
[1770480206147,1.20863286,2054.8,2053.9,0.97929645]
[1770480206357,1.21658811,2055.0,2054.5,0.001]
[1770480206565,1.21850157,2055.1,2054.5,0.001]
[1770480207951,0.002,2055.1,2054.5,0.001]
[1770480208333,0.61063699,2055.1,2054.5,0.001]
[1770480208530,0.002,2055.1,2054.5,0.98029645]
[1770480208853,0.002,2055.1,2054.5,0.001]
[1770480209371,0.002,2055.1,2053.9,0.97929645]
[1770480210049,0.90485461,2055.1,2053.9,2.19645872]
[1770480210246,0.90285461,2054.9,2053.6,2.19763109]
[1770480210442,0.90285461,2054.9,2053.6,2.1976277]
[1770480210945,0.90285461,2054.9,2053.8,1.21724866]
[1770480211248,0.90285461,2054.9,2053.7,1.21727402]
[1770480211456,1.72145297,2054.8,2053.7,1.21727402]
[1770480212171,1.21672263,2054.7,2053.7,2.19657047]
[1770480214470,1.21672263,2054.7,2053.8,0.97929645]
[1770480215042,0.90285461,2054.2,2053.6,0.001]
[1770480215684,1.00525461,2054.5,2053.6,0.001]
[1770480216459,0.9951654,2054.2,2053.6,0.001]
[1770480217087,0.9951654,2054.2,2053.4,0.001]
[1770480217307,0.9951654,2054.0,2053.4,0.001]
[1770480218201,0.9951654,2054.0,2053.8,0.001]
[1770480218394,0.81758944,2054.1,2053.5,0.001]
[1770480218568,1.21701879,2054.2,2053.5,0.001]
[1770480218769,2.21218419,2054.2,2053.5,0.001]
[1770480222087,0.9951654,2054.1,2053.5,0.001]
[1770480222291,0.9951654,2054.0,2053.5,0.001]
[1770480222454,1.21701879,2054.2,2053.4,0.001]
[1770480222658,0.70802594,2054.1,2053.4,0.001]
[1770480224278,1.21713729,2054.0,2053.4,0.001]
[1770480228735,0.1024,2054.5,2053.4,0.001]
[1770480228736,4.86760124,2054.8,2053.8,0.94216258]
[1770480228872,0.002,2055.3,2054.7,0.94216258]
[1770480229201,1.21589416,2056.1,2055.0,0.94216258]
[1770480229402,10.55427476,2056.1,2055.0,0.94216258]
[1770480229698,10.55427476,2056.1,2055.1,0.94216258]
[1770480230306,10.55427476,2056.1,2055.3,0.94216258]
[1770480231002,10.55427476,2056.1,2055.5,0.94216258]
[1770480231696,0.002,2056.2,2055.6,0.94216258]
[1770480232475,0.002,2056.2,2055.6,0.99085755]
[1770480232677,0.002,2056.2,2055.8,0.94216258]
[1770480233381,0.002,2056.2,2055.9,1.21601245]
[1770480233585,10.55627476,2056.2,2055.7,0.81715865]
[1770480233908,10.55627476,2056.2,2055.5,2.15840674]
[1770480234203,10.55627476,2056.2,2055.5,0.94216258]
[1770480234402,10.55627476,2056.2,2055.7,1.21608649]
[1770480235407,11.61210224,2056.2,2055.6,1.21615362]
[1770480235789,12.82794407,2056.2,2055.3,1.21633067]
[1770480235983,12.82794407,2056.2,2055.4,1.21629034]
[1770480236308,1.28279441,2056.1,2055.4,1.21626876]
[1770480236679,10.55427476,2056.0,2055.4,1.21626876]
[1770480237008,10.55427476,2056.0,2055.5,1.21624454]
[1770480237301,10.55427476,2056.0,2055.4,1.21626946]
[1770480237510,10.55427476,2056.0,2055.2,1.21642662]
[1770480237799,10.55427476,2056.0,2055.3,0.58074135]
[1770480238875,11.77024995,2056.0,2055.3,0.58074135]
[1770480239097,10.55427476,2056.0,2055.3,0.58074135]
[1770480239303,12.45169877,2056.0,2055.3,0.58074135]
[1770480240408,12.45169877,2056.0,2055.3,1.79705288]
[1770480240719,10.55427476,2056.0,2055.3,1.79705288]
[1770480241786,10.55427476,2056.0,2055.3,2.73921546]
[1770480242003,2.27366847,2056.2,2055.3,2.73921546]
[1770480242205,10.55427476,2056.1,2055.3,2.73921546]
[1770480242405,10.55427476,2056.1,2055.3,1.79705288]
[1770480242602,0.9951654,2056.0,2055.5,0.001]
[1770480242992,10.55327476,2055.9,2055.1,1.21647804]
[1770480243189,10.55327476,2055.9,2055.3,0.001]
[1770480244501,1.2160716,2055.8,2055.3,0.001]
[1770480244711,1.66336328,2055.7,2055.3,0.001]
[1770480245005,0.002,2056.0,2055.3,0.94316258]
[1770480246304,10.55527476,2056.0,2055.3,0.94316258]
[1770480246504,11.77123908,2056.0,2055.3,0.001]
[1770480246682,1.17712391,2055.9,2055.3,0.001]
[1770480247813,10.55327476,2055.8,2055.3,0.001]
[1770480248914,1.17712391,2055.9,2055.3,0.001]
[1770480249103,10.55327476,2055.8,2055.3,0.001]
[1770480250314,10.55327476,2055.7,2055.3,0.001]
[1770480251198,12.58755709,2055.7,2054.7,1.21666786]
[1770480251397,12.58755709,2055.7,2054.7,1.21669396]
[1770480252088,12.58755709,2055.7,2054.8,1.21665269]
[1770480252418,12.58755709,2055.7,2054.9,1.21659748]
[1770480253301,12.58755709,2055.7,2054.7,5.7924216]
[1770480253502,0.61301388,2055.6,2054.8,0.70091442]
[1770480254714,10.55327476,2055.5,2054.7,4.86674202]
[1770480255020,10.55327476,2055.5,2054.7,1.21672263]
[1770480255823,10.55327476,2055.5,2054.4,5.79421685]
[1770480255824,0.92548967,2055.2,2054.4,0.001]
[1770480256199,19.53630069,2055.4,2054.4,0.001]
[1770480256200,11.47876443,2055.1,2054.4,0.001]
[1770480256418,0.92548967,2054.9,2053.7,1.21727106]
[1770480256599,0.92548967,2054.9,2053.8,1.21724553]
[1770480256923,10.55327476,2054.8,2053.8,1.21724553]
[1770480257412,11.47876443,2054.8,2053.8,1.21724553]
[1770480257610,1.30137644,2054.7,2053.7,1.21727479]
[1770480257816,11.77005661,2054.6,2053.6,0.001]
[1770480258126,0.92548967,2054.5,2053.6,0.001]
[1770480258911,11.77005661,2054.6,2053.6,0.001]
[1770480258912,10.55327476,2054.4,2053.6,0.001]
[1770480259307,0.92548967,2054.3,2053.6,0.001]
[1770480259508,1.14787644,2054.2,2053.6,0.001]
[1770480259803,1.21707803,2054.1,2053.6,0.001]
[1770480260508,2.36493366,2054.2,2053.6,0.001]
[1770480260709,10.55327476,2054.1,2053.6,0.001]
[1770480262227,4.86650468,2054.9,2053.7,0.92567958]
[1770480262402,1.70331389,2054.8,2053.8,0.86933973]
[1770480262597,12.25658865,2054.8,2053.8,0.86933973]
[1770480262796,12.25658865,2054.8,2053.8,1.79501931]
[1770480263721,3.403,2054.7,2053.8,1.79501931]
[1770480263908,4.61972475,2054.7,2053.9,1.21719655]
[1770480264113,10.55327476,2054.6,2054.0,0.78811469]
[1770480264912,10.55327476,2054.6,2053.8,6.66395036]
[1770480264913,10.55327476,2054.6,2053.8,0.86933973]
[1770480265134,0.92548967,2054.5,2053.6,0.001]
[1770480265431,10.55327476,2054.6,2053.8,1.21725375]
[1770480265803,12.08827476,2054.6,2053.8,1.21725375]
[1770480266006,13.30510163,2054.6,2053.9,1.91840812]
[1770480266433,13.30510163,2054.6,2053.9,0.70121721]
[1770480266810,12.08827476,2054.6,2053.9,2.84405163]
[1770480268437,0.002,2054.4,2053.9,2.84405163]
[1770480268610,3.403,2054.3,2054.0,0.77139075]
[1770480270540,13.95627476,2054.3,2053.8,0.001]
[1770480270711,10.55327476,2054.2,2053.8,0.001]
[1770480271237,3.403,2054.3,2054.0,1.21710823]
[1770480271418,0.002,2054.4,2054.0,1.21710823]
[1770480271613,13.95827476,2054.4,2054.1,0.60856574]
[1770480271814,0.002,2054.4,2054.1,0.60856574]
[1770480272933,0.002,2054.4,2054.1,1.82561289]
[1770480273537,13.95827476,2054.4,2054.1,0.60856574]
[1770480273841,13.95827476,2054.4,2053.8,0.001]
[1770480274030,0.002,2054.4,2053.8,0.001]
[1770480274233,13.95627476,2054.3,2053.8,0.001]